fUSD/lending_fUSD_20240707
["ID","MTS","AMOUNT","RATE_DAILY","PERIOD"]
[331411312,1720353041623,-900.0,0.000136,4]
[331411313,1720353041636,-652.138997,0.00013605,2]
[331411314,1720353041646,-1064.949653,0.00013605,2]
[331411315,1720353041655,-176.06765,0.00013605,2]
[331411316,1720353041670,-178.470156,0.00013605,2]
[331411317,1720353041679,-1131.383443,0.00013605,2]
[331411318,1720353041690,-652.138997,0.00013605,2]
[331411319,1720353041700,-366.531834,0.00013605,2]
[331411320,1720353041711,-377.127815,0.00013605,2]
[331411321,1720353041721,-326.069499,0.00013605,2]
[331411322,1720353041730,-176.06765,0.00013605,2]
[331411323,1720353041740,-377.127815,0.00013605,2]
[331411324,1720353041751,-178.470156,0.00013605,2]
[331411327,1720353041761,-366.531835,0.00013605,2]
[331411329,1720353041772,-3000.0,0.0001366,2]
[331411331,1720353041781,-414.76,0.00013699,2]
[331411335,1720353041791,-1080.27,0.00013699,2]
[331411338,1720353041800,-1643.3148,0.00013699,2]
[331411340,1720353041810,-1400.0,0.000137,5]
[331411342,1720353041819,-2500.0,0.000137,2]
[331411344,1720353041829,-652.138997,0.00013775,2]
[331411346,1720353041839,-1064.949653,0.00013775,2]
[331411348,1720353041848,-1131.383443,0.00013775,2]
[331411350,1720353041857,-652.138997,0.00013775,2]
[331411352,1720353041867,-366.531834,0.00013775,2]
[331411354,1720353041876,-377.127815,0.00013775,2]
[331411356,1720353041886,-326.069499,0.00013775,2]
[331411358,1720353041896,-377.127815,0.00013775,2]
[331411360,1720353041905,-366.531835,0.00013775,2]
[331411362,1720353041915,-2015.6022,0.0001378,2]
[331411364,1720353041925,-320.43456087,0.00013789,2]
[331411366,1720353041934,-2025.88779798,0.00013789,2]
[331411368,1720353041943,-600.0,0.00013797,2]
[331411370,1720353041952,-169.35198373,0.00013799,2]
[331411372,1720353041962,-106657.00278948,0.000138,2]
[331411374,1720353041972,-2000.0,0.000138,2]
[331411376,1720353041981,-200.0,0.000138,2]
[331411378,1720353041991,-767.47924399,0.000138,2]
[331411380,1720353042000,-2000.0,0.000138,2]
[331411382,1720353042010,-200.0,0.000138,2]
[331411384,1720353042020,-200.0,0.000138,2]
[331411386,1720353042029,-1900.0,0.000138,5]
[331411388,1720353042039,-227.22563372,0.00013802,2]
[331411390,1720353042048,-169.35198369,0.00013824,2]
[331411392,1720353042058,-156.12927252,0.00013849,4]
[331411394,1720353042068,-169.35198369,0.0001385,2]
[331411396,1720353042078,-168.399,0.00013873,2]
[331411398,1720353042088,-169.35198369,0.00013875,2]
[331411400,1720353042098,-220.8553415,0.00013879,2]
[331411402,1720353042107,-76092.81637464,0.0001388,2]
[331411404,1720353042120,-333756.04375267,0.0001388,2]
[331411411,1720353042179,-2943.47519999,0.0001388,2]
[331411414,1720353042190,-3414.75,0.0001388,2]
[331411428,1720353042363,-4718.94712807,0.0001388,2]
[331411429,1720353042462,-9641.02409454,0.0001388,2]
[331411430,1720353042471,-164.95864486,0.00013899,2]
[331411431,1720353042480,-1071.24766976,0.00013899,2]
[331411432,1720353042490,-2400.0,0.000139,5]
[331411434,1720353042499,-169.35198369,0.000139,2]
[331411436,1720353042509,-2502.52296861,0.000139,2]
[331411438,1720353042518,-12.66138571,0.0001392,2]
[331411441,1720353042529,-350.63,0.0001392,2]
[331411443,1720353042541,-165.43861429,0.0001392,2]
[331411445,1720353042552,-150.0,0.0001392,2]
[331411447,1720353042561,-528.73,0.0001392,2]
[331411449,1720353042571,-150.0,0.0001392,2]
[331411451,1720353042580,-161.48,0.0001392,2]
[331411453,1720353042590,-476.71357501,0.0001392,2]
[331411572,1720353043700,-52.01642499,0.0001392,2]
[331411575,1720353043711,-528.73,0.0001392,2]
[331411578,1720353043720,-150.0,0.0001392,2]
[331411581,1720353043730,-150.0,0.0001392,2]
[331411583,1720353043741,-150.0,0.0001392,2]
[331411586,1720353043753,-1057.08,0.0001392,2]
[331411589,1720353043762,-150.0,0.0001392,2]
[331411591,1720353043772,-528.5,0.0001392,2]
[331411593,1720353043782,-150.0,0.0001392,2]
[331411595,1720353043792,-150.0,0.0001392,2]
[331411597,1720353043802,-300.0,0.0001392,2]
[331411599,1720353043812,-355.03,0.0001392,2]
[331411601,1720353043822,-150.0,0.0001392,2]
[331411603,1720353043832,-355.03,0.0001392,2]
[331411605,1720353043842,-150.0,0.0001392,2]
[331411607,1720353043851,-150.0,0.0001392,2]
[331411609,1720353043861,-355.03,0.0001392,2]
[331411611,1720353043871,-150.0,0.0001392,2]
[331411613,1720353043880,-164.95,0.0001392,2]
[331411615,1720353043890,-710.06,0.0001392,2]
[331411617,1720353043899,-164.95,0.0001392,2]
[331411619,1720353043909,-355.03,0.0001392,2]
[331411621,1720353043918,-164.95,0.0001392,2]
[331411623,1720353043928,-123.79339875,0.00013922,2]
[331411625,1720353043940,-26.20660125,0.00013922,2]
[331411627,1720353043950,-150.0,0.00013922,2]
[331411628,1720353043960,-150.0,0.00013922,2]
[331411629,1720353043970,-150.0,0.00013922,2]
[331411630,1720353043980,-300.0,0.00013922,2]
[331411631,1720353043989,-164.95,0.00013922,2]
[331411632,1720353043999,-150.0,0.00013922,2]
[331411633,1720353044009,-133.38209875,0.00013922,2]
[331411634,1720353044020,-16.61790125,0.00013922,2]
[331411635,1720353044031,-164.95,0.00013922,2]
[331411636,1720353044042,-164.95,0.00013922,2]
[331411637,1720353044053,-360.27,0.00013922,2]
[331411638,1720353044063,-150.0,0.00013922,2]
[331411639,1720353044073,-164.95,0.00013922,2]
[331411640,1720353044083,-355.03,0.00013922,2]
[331411641,1720353044094,-164.95,0.00013922,2]
[331411642,1720353044103,-196.30322875,0.00013922,2]
[331411643,1720353044115,-158.72677125,0.00013922,2]
[331411644,1720353044125,-150.0,0.00013922,2]
[331411645,1720353044137,-164.95,0.00013922,2]
[331411646,1720353044147,-355.03,0.00013922,2]
[331411647,1720353044157,-164.95,0.00013922,2]
[331411648,1720353044167,-150.0,0.00013922,2]
[331411649,1720353044176,-355.03,0.00013922,2]
[331411650,1720353044186,-355.03,0.00013922,2]
[331411651,1720353044196,-164.95,0.00013922,2]
[331411652,1720353044206,-158.24,0.00013922,2]
[331411653,1720353044216,-164.95,0.00013922,2]
[331411654,1720353044226,-355.03,0.00013922,2]
[331411655,1720353044237,-713.2,0.00013922,2]
[331411656,1720353044247,-164.95,0.00013922,2]
[331411657,1720353044257,-164.95,0.00013922,2]
[331411658,1720353044269,-329.9,0.00013922,2]
[331411659,1720353044279,-168.399,0.00013936,2]
[331411660,1720353044289,-2000.0,0.00013938,2]
[331411661,1720353044300,-200.0,0.00013938,2]
[331411662,1720353044310,-2000.0,0.00013938,2]
[331411663,1720353044320,-200.0,0.00013938,2]
[331411664,1720353044331,-200.0,0.00013938,2]
[331411665,1720353044340,-168.782851,0.00013945,2]
[331411666,1720353044350,-652.138997,0.00013945,2]
[331411667,1720353044360,-1064.949653,0.00013945,2]
[331411668,1720353044370,-1131.383443,0.00013945,2]
[331411669,1720353044380,-652.138997,0.00013945,2]
[331411670,1720353044393,-366.531834,0.00013945,2]
[331411671,1720353044404,-377.127815,0.00013945,2]
[331411672,1720353044417,-326.069499,0.00013945,2]
[331411673,1720353044427,-377.127815,0.00013945,2]
[331411674,1720353044437,-366.531835,0.00013945,2]
[331411675,1720353044447,-2025.88779797,0.00013948,2]
[331411676,1720353044457,-26051.0,0.00013973,2]
[331411677,1720353044467,-2000.0,0.00013973,3]
[331411678,1720353044476,-168.399,0.00013999,2]
[331411679,1720353044486,-512270.07658024,0.00013999,2]
[331411680,1720353044498,-28504.50106015,0.00013999,2]
[331411704,1720353047698,-1310.01098762,0.00013999,2]
[331411705,1720353047711,-19806.34964143,0.00013999,2]
[331411706,1720353047723,-802.22733,0.00013999,2]
[331411707,1720353047783,-355.03,0.0001392,2]
[331411708,1720353047792,-8428.16619374,0.00013999,2]
[331411709,1720353047804,-285.43780332,0.00013999,2]
[331411710,1720353047816,-8068.01325135,0.00013999,2]
[331411711,1720353047827,-680.84002523,0.00013999,2]
[331411712,1720353048063,-2215.12301399,0.00013999,2]
[331411713,1720353048074,-4885.17463454,0.00013999,2]
[331411714,1720353050268,-913.46546443,0.00013999,2]
[331411715,1720353050280,-522.23783259,0.00013999,2]
[331411716,1720353050291,-1383.975,0.00013999,2]
[331411717,1720353050304,-2205.695,0.00013999,2]
[331411718,1720353050317,-6362.28804746,0.00013999,2]
[331411719,1720353050328,-2136.53960588,0.00013999,2]
[331411720,1720353160240,-191.0,0.00034083,30]
[331411721,1720353160269,-425.0,0.00034083,30]
[331411722,1720353160298,-257.0,0.00034083,30]
[331411723,1720353160327,-1000.0,0.00034083,30]
[331411724,1720353177921,-990000.0,0.000225,120]
[331411725,1720353183916,-319265.32981142,0.000225,120]
[331411726,1720353238668,339.12,0.00011286,2]
[331411728,1720353300257,4726.6159231,0.00011286,2]
[331411729,1720353330516,50000.0,0.00034085,30]
[331411730,1720353338233,50000.0,0.00034085,31]
[331411732,1720353341629,50000.0,0.00034085,32]
[331411733,1720353345423,50000.0,0.00034085,33]
[331411734,1720353348144,50000.0,0.00034085,34]
[331411735,1720353353480,50000.0,0.00034085,35]
[331411736,1720353357373,50000.0,0.00034085,36]
[331411737,1720353365937,50000.0,0.00034085,37]
[331411738,1720353369952,50000.0,0.00034085,38]
[331411739,1720353373219,50000.0,0.00034085,39]
[331411740,1720353453213,50000.0,0.00034085,30]
[331411741,1720353454182,50000.0,0.00034085,31]
[331411742,1720353457430,50000.0,0.00034085,32]
[331411743,1720353460850,50000.0,0.00034085,33]
[331411744,1720353466714,50000.0,0.00034085,34]
[331411745,1720353470500,50000.0,0.00034085,35]
[331411746,1720353475167,50000.0,0.00034085,36]
[331411747,1720353476941,50000.0,0.00034085,37]
[331411748,1720353480386,50000.0,0.00034085,38]
[331411749,1720353487599,38127.0,0.00034216,39]
[331411750,1720353520164,1817.20672033,0.00011199,2]
[331411765,1720353750645,300.51199197,0.00011199,2]
[331411766,1720353757496,7526.96592911,0.00011199,2]
[331411767,1720353762834,181.21410071,0.00011199,2]
[331411768,1720353763370,553.07615953,0.00011199,2]
[331411769,1720353765950,155.0,0.00011199,2]
[331411770,1720353769782,411.76816348,0.00011199,2]
[331411771,1720353769873,188.04745964,0.00011199,2]
[331411772,1720353770008,2563.22715082,0.00011199,2]
[331411773,1720353772380,473196.77370778,0.00011199,2]
[331411774,1720353785271,19829.79653275,0.00011199,2]
[331411775,1720353789066,290.66575246,0.00011199,2]
[331411776,1720353790322,684.75373736,0.00011199,2]
[331411777,1720353832247,159.39218237,0.00011199,2]
[331411778,1720353855537,150.0,0.00011199,2]
[331411779,1720353855606,1217.58779488,0.00011199,2]
[331411780,1720353858089,5386.87256081,0.00011199,2]
[331411782,1720353862388,553.19201684,0.00011199,2]
[331411787,1720353873443,155.0,0.00011199,2]
[331411788,1720353874178,1007.61514255,0.00011199,2]
[331411789,1720353876852,156.49636207,0.00011199,2]
[331411790,1720353877607,450.0,0.00011199,2]
[331411792,1720353892779,290.46265469,0.00011199,2]
[331411793,1720353905326,600.0,0.00011199,2]
[331411794,1720353933285,322.16,0.00010666,2]
[331411795,1720353957453,1367.02678038,0.00011199,2]
[331411796,1720353957883,552.96030222,0.00011199,2]
[331411799,1720354015650,155.62331089,0.00011199,2]
[331411802,1720354080948,150.0,0.00011199,2]
[331411803,1720354080981,150.0,0.00011199,2]
[331411804,1720354081007,150.0,0.00011199,2]
[331411805,1720354081033,150.0,0.00011199,2]
[331411806,1720354081063,131.67559911,0.00011199,2]
[331411807,1720354087789,18.32440089,0.00011199,2]
[331411808,1720354087826,150.0,0.00011199,2]
[331411809,1720354087865,150.0,0.00011199,2]
[331411810,1720354087904,289.21,0.00011199,2]
[331411811,1720354087988,4779.33815992,0.00011199,2]
[331411815,1720354150215,968.92161463,0.00011199,2]
[331411817,1720354167891,150.0,0.00010077,2]
[331411823,1720354232093,-329.0,0.00012301,2]
[331411824,1720354232105,-300.0,0.00012565,2]
[331411826,1720354232116,-5695.59079939,0.00012566,2]
[331411828,1720354232135,-484.55762474,0.00012566,2]
[331411829,1720354232148,-17719.85157587,0.00012566,2]
[331411830,1720354232158,-250.0,0.00012574,2]
[331411831,1720354232169,-168.86,0.00012609,2]
[331411832,1720354232178,-360.0,0.00012617,2]
[331411833,1720354232188,-250.0,0.00012649,2]
[331411834,1720354232198,-320.0,0.00012694,2]
[331411835,1720354232208,-2380.0,0.00012789,2]
[331411836,1720354232219,-600.0,0.00012874,2]
[331411837,1720354232228,-1086.34,0.00012897,2]
[331411838,1720354232238,-4361.90197375,0.00012918,2]
[331411839,1720354232248,-322.16,0.00012929,2]
[331411840,1720354232258,-499.99,0.00013049,2]
[331411841,1720354232268,-349.79,0.00013098,2]
[331411842,1720354232278,-349.79,0.000131,2]
[331411843,1720354232287,-640.0,0.00013116,2]
[331411844,1720354232297,-164.95,0.00013178,2]
[331411845,1720354232308,-329.82,0.00013178,2]
[331411846,1720354232317,-600.0,0.0001341,2]
[331411847,1720354232327,-355.03,0.00013478,2]
[331411848,1720354232336,-355.03,0.00013478,2]
[331411849,1720354232347,-164.95,0.000135,2]
[331411850,1720354232357,-200.0,0.00013566,2]
[331411851,1720354232367,-207.38,0.00013699,2]
[331411852,1720354232376,-19623.1353,0.000137,2]
[331411853,1720354232386,-9306.02146242,0.00013736,2]
[331411854,1720354232399,-1787.69321694,0.00013736,2]
[331411855,1720354232411,-1668.5767014,0.00013736,2]
[331411856,1720354232420,-228.3799366,0.00013785,2]
[331411860,1720354232528,356.38582122,0.00011199,2]
[331411864,1720354238242,-191.6200634,0.00013785,2]
[331411865,1720354238253,-2761.99234015,0.00013801,2]
[331411866,1720354238265,-939.15222485,0.00013801,2]
[331411867,1720354238274,-315.063537,0.00013801,2]
[331411868,1720354238284,-257.809774,0.00013801,2]
[331411869,1720354238293,-626.8506827,0.00013849,2]
[331411870,1720354238303,-2877.12378145,0.0001386,2]
[331411873,1720354240189,-122.87621855,0.0001386,2]
[331411874,1720354240200,-625.93982827,0.00013899,2]
[331411875,1720354240210,-1000.0,0.000139,2]
[331411876,1720354240220,-310.71556711,0.000139,2]
[331411877,1720354240230,-323.36628607,0.000139,2]
[331411878,1720354240245,-1086.34670665,0.000139,2]
[331411879,1720354240256,-109.70285581,0.000139,2]
[331411880,1720354240266,-320.43456087,0.000139,2]
[331411881,1720354240276,-424.55,0.0001392,2]
[331411882,1720354240285,-424.55,0.0001392,2]
[331411883,1720354240295,-424.55,0.0001392,2]
[331411884,1720354240305,-424.55,0.00013922,2]
[331411885,1720354240315,-424.55,0.00013922,2]
[331411886,1720354240325,-424.55,0.00013922,2]
[331411887,1720354240336,-424.55,0.00013922,2]
[331411888,1720354240346,-424.55,0.00013922,2]
[331411889,1720354240359,-424.55,0.00013922,2]
[331411890,1720354240369,-424.55,0.00013922,2]
[331411891,1720354240378,-424.55,0.00013922,2]
[331411892,1720354240388,-424.55,0.00013922,2]
[331411893,1720354240398,-424.55,0.00013922,2]
[331411894,1720354240408,-424.55,0.00013922,2]
[331411895,1720354240418,-424.55,0.00013922,2]
[331411896,1720354240429,-424.55,0.00013922,2]
[331411897,1720354240439,-600.0,0.00013969,2]
[331411898,1720354240448,-3701.144565,0.00013974,2]
[331411899,1720354240458,-315.063537,0.00013974,2]
[331411900,1720354240468,-257.809774,0.00013974,2]
[331411901,1720354240478,-4584.91906118,0.00013999,2]
[331411902,1720354240490,-1604.46511187,0.00013999,2]
[331411903,1720354240502,-3008.08311096,0.00013999,2]
[331411904,1720354240665,-737.20895646,0.00013999,2]
[331411905,1720354240677,-436.04845426,0.00013999,2]
[331412168,1720354243383,-1668.34864574,0.000139,2]
[331412170,1720354243393,-424.55,0.0001392,2]
[331412172,1720354243403,-37784.70214499,0.00013999,2]
[331412174,1720354243412,-305.69878088,0.00013999,2]
[331412176,1720354243422,-227.22563372,0.00013999,2]
[331412178,1720354243432,-305.69878088,0.00013999,2]
[331412180,1720354243442,-5179.0,0.00014,2]
[331412182,1720354243451,-5813.0,0.00014,2]
[331412184,1720354243461,-291.0,0.00014,2]
[331412186,1720354243471,-1665.0,0.00014,2]
[331412188,1720354243480,-525.233,0.00014,2]
[331412190,1720354243490,-213065.13029817,0.00014,2]
[331412204,1720354245978,-776.31930374,0.00014,2]
[331412230,1720354250135,-597.92187238,0.00014,2]
[331412231,1720354250198,-5591.80383644,0.00014,2]
[331412232,1720354250210,-922.26269289,0.00014,2]
[331412233,1720354250222,-870.66039763,0.00014,2]
[331412234,1720354350229,1000.0,0.00027,120]
[331412243,1720354585191,150.0,0.00011227,2]
[331412244,1720354585221,139.94,0.00011227,2]
[331412245,1720354607301,5565.21776114,0.00011227,2]
[331412246,1720354875895,6080.0,0.00027,120]
[331412249,1720355043305,155.0,0.00011199,2]
[331412250,1720355100021,424.94216003,0.00011199,2]
[331412251,1720355109231,227.22563372,0.00011199,2]
[331412253,1720355203459,459.03935982,0.00011199,2]
[331412254,1720355207371,150.0,0.00011199,2]
[331412255,1720355207397,150.0,0.00011199,2]
[331412256,1720355207422,150.0,0.00011199,2]
[331412257,1720355207460,150.0,0.00011199,2]
[331412258,1720355207489,150.0,0.00011199,2]
[331412259,1720355207512,150.0,0.00011199,2]
[331412260,1720355207535,150.0,0.00011199,2]
[331412261,1720355207558,150.0,0.00011199,2]
[331412262,1720355207581,150.0,0.00011199,2]
[331412263,1720355207606,150.0,0.00011199,2]
[331412264,1720355207630,150.0,0.00011199,2]
[331412265,1720355207652,150.0,0.00011199,2]
[331412266,1720355207676,150.0,0.00011199,2]
[331412267,1720355207699,150.0,0.00011199,2]
[331412268,1720355207724,150.0,0.00011199,2]
[331412269,1720355207749,150.0,0.00011199,2]
[331412270,1720355207815,5154.66053537,0.00011199,2]
[331412271,1720355210919,150.0,0.00011199,2]
[331412272,1720355210986,366.08756345,0.00011199,2]
[331412273,1720355223485,150.0,0.00011199,2]
[331412274,1720355223511,5.0,0.00011199,2]
[331412275,1720355223699,145.0,0.00011199,2]
[331412276,1720355223722,150.0,0.00011199,2]
[331412277,1720355223746,150.0,0.00011199,2]
[331412278,1720355223769,150.0,0.00011199,2]
[331412279,1720355224226,150.0,0.00011199,2]
[331412280,1720355224252,150.0,0.00011199,2]
[331412281,1720355224277,150.0,0.00011199,2]
[331412282,1720355224300,150.0,0.00011199,2]
[331412283,1720355224328,187.54002024,0.00011199,2]
[331412284,1720355224398,1184.74117863,0.00011199,2]
[331412285,1720355239055,9475.36501493,0.00011199,2]
[331412286,1720355247461,184702.06207968,0.00011199,2]
[331412289,1720355326681,839.75323891,0.00011199,2]
[331412290,1720355342233,155.0,0.00011199,2]
[331412291,1720355357531,155.0,0.00011199,2]
[331412292,1720355359218,2378.93432536,0.00011199,2]
[331412295,1720355370575,1367.58779488,0.00011199,2]
[331412296,1720355384103,275.44,0.00011057,2]
[331412310,1720355432047,-227.22563372,0.00012314,2]
[331412311,1720355432059,-227.22563372,0.00012314,2]
[331412312,1720355432069,-28.54404512,0.00012893,2]
[331412313,1720355432122,-131.50725488,0.00012893,2]
[331412314,1720355432135,-1000.0,0.0001292,2]
[331412315,1720355432148,-300.0,0.00012992,2]
[331412316,1720355432159,-9959.58,0.00012993,2]
[331412318,1720355432169,-200.01,0.00013009,2]
[331412320,1720355432180,-250.0,0.00013028,2]
[331412322,1720355432190,-250.0,0.00013034,2]
[331412323,1720355432200,-424.94216003,0.00013128,2]
[331412324,1720355432210,-424.94216003,0.00013128,2]
[331412325,1720355432219,-30.08147842,0.00013128,2]
[331412326,1720355432231,-1873.57131757,0.00013128,2]
[331412327,1720355432241,-275.44,0.00013321,2]
[331412328,1720355432251,-5233.36540743,0.00013472,2]
[331412329,1720355432264,-32.11681882,0.00013472,2]
[331412330,1720355432273,-521.733628,0.00013472,2]
[331412331,1720355432419,-482.87677638,0.00013472,2]
[331412332,1720355432431,-710.59577829,0.00013472,2]
[331412333,1720355432443,-897.95,0.00013472,2]
[331412334,1720355432454,-474.37904849,0.00013472,2]
[331412335,1720355432467,-1026.39824093,0.00013472,2]
[331412336,1720355432479,-6111.35368372,0.00013472,2]
[331412337,1720355432488,-424.55,0.000135,2]
[331412338,1720355432498,-173.33,0.00013527,2]
[331412339,1720355432508,-7673.57077484,0.00013574,2]
[331412340,1720355432517,-957.15649194,0.00013574,2]
[331412341,1720355432526,-11113.1230867,0.00013574,2]
[331412342,1720355432536,-1361.4051465,0.00013574,2]
[331412343,1720355432545,-424.55,0.000136,2]
[331412344,1720355432556,-424.55,0.000136,2]
[331412345,1720355432565,-299.99,0.00013699,2]
[331412346,1720355432574,-499.99,0.00013699,2]
[331412347,1720355432587,-207.38,0.00013699,2]
[331412348,1720355432596,-150.0,0.000137,2]
[331412349,1720355432605,-424.55,0.000137,2]
[331412350,1720355432614,-4941.61346821,0.00013801,2]
[331412351,1720355432626,-2507.35517279,0.00013801,2]
[331412352,1720355432635,-223.414619,0.00013801,2]
[331412353,1720355432644,-1169.611785,0.00013801,2]
[331412354,1720355432653,-162.955972,0.00013801,2]
[331412355,1720355432663,-3000.0,0.0001386,2]
[331412356,1720355432672,-500.0,0.00013887,2]
[331412357,1720355432682,-500.0,0.00013888,2]
[331412358,1720355432691,-200.0,0.00013888,2]
[331412359,1720355432701,-263.76477357,0.00013889,2]
[331412360,1720355432710,-5104.7324,0.00013899,2]
[331412361,1720355432719,-46604.0271,0.000139,2]
[331412362,1720355432729,-164.95864486,0.000139,2]
[331412363,1720355432739,-6866.667,0.000139,2]
[331412364,1720355432748,-2279.7157,0.000139,2]
[331412365,1720355432757,-2471.65917968,0.000139,2]
[331412366,1720355432769,-138.10032032,0.000139,2]
[331412367,1720355432778,-578.63421742,0.000139,2]
[331412368,1720355432789,-614.51,0.000139,2]
[331412369,1720355432800,-638.68830435,0.000139,2]
[331412370,1720355432814,-876.19079039,0.000139,2]
[331412371,1720355432826,-1346.78709982,0.000139,2]
[331412466,1720355440728,-1620.06468802,0.000139,2]
[331412467,1720355440739,-424.55,0.000139,2]
[331412468,1720355440750,-422.75,0.000139,2]
[331412469,1720355440761,-424.55,0.000139,2]
[331412470,1720355440772,-207.1437114,0.000139,2]
[331412471,1720355440786,-424.55,0.000139,2]
[331412472,1720355440796,-1329.48886742,0.000139,2]
[331412473,1720355440807,-173.03102793,0.000139,2]
[331412474,1720355440817,-320.77112404,0.000139,2]
[331412475,1720355440828,-1112.23243048,0.000139,2]
[331412476,1720355440838,-406.09,0.0001392,2]
[331412477,1720355440849,-154.758155,0.00013973,2]
[331412478,1720355440860,-1590.53,0.00013973,3]
[331412479,1720355440870,-7448.968641,0.00013974,2]
[331412480,1720355440881,-223.414619,0.00013974,2]
[331412481,1720355440891,-1169.611785,0.00013974,2]
[331412482,1720355440901,-171056.76853835,0.00013999,2]
[331412488,1720355440994,-376.99575028,0.00013999,2]
[331412491,1720355441006,-1727.6638436,0.00013999,2]
[331412493,1720355441018,-509.18844783,0.00013999,2]
[331412495,1720355441030,-349.28923991,0.00013999,2]
[331412497,1720355441042,-27736.0,0.00013999,2]
[331412499,1720355441055,-235589.53673227,0.00013999,2]
[331412502,1720355441068,-643.23488832,0.00013999,2]
[331412504,1720355441080,-727.40483639,0.00013999,2]
[331412634,1720355443178,-1864.74812184,0.00013999,2]
[331412635,1720355443335,-3262.44251899,0.00013999,2]
[331412636,1720355443347,-579.35,0.00013999,2]
[331412637,1720355443359,-3221.54250773,0.00013999,2]
[331412638,1720355443372,-1668.02297108,0.00013999,2]
[331412639,1720355443481,-244744.27869207,0.00013999,2]
[331412640,1720355443491,-1134.0,0.00014,2]
[331412641,1720355443501,-44309.62213384,0.00014,2]
[331412642,1720355443512,-9027.11088934,0.00014,2]
[331412646,1720355444905,-5579.18028061,0.00014,2]
[331412647,1720355444917,-12973.483531,0.00014,2]
[331412648,1720355446402,-462.43344098,0.00014,2]
[331412649,1720355446414,-10964.11256475,0.00014,2]
[331412650,1720355446430,-508.5,0.00014,2]
[331412651,1720355446442,-261.14393135,0.00014,2]
[331412652,1720355446454,-3812.8620695,0.00014,2]
[331412653,1720355446466,-12115.36860853,0.00014,2]
[331412654,1720355446479,-1348.24207892,0.00014,2]
[331412655,1720355446491,-2609.99752265,0.00014,2]
[331412656,1720355446502,-1246.58900404,0.00014,2]
[331412657,1720355446674,-2378.93432536,0.00013402,2]
[331412658,1720355446684,-421.28228902,0.00014,2]
[331412659,1720355446695,-3863.34211724,0.00014,2]
[331412660,1720355616142,2961.99260796,0.00011199,2]
[331412661,1720355616184,3276.06049039,0.00011199,2]
[331412662,1720355616227,2971.62975195,0.00011199,2]
[331412663,1720355616268,3313.76233152,0.00011199,2]
[331412664,1720355616307,2961.90672074,0.00011199,2]
[331412665,1720355616380,17891.15478924,0.00011199,2]
[331412668,1720355706818,-26460.0,0.000118,2]
[331412669,1720355707452,97248.76219094,0.00011199,2]
[331412671,1720355716963,227.22563372,0.00011199,2]
[331412676,1720355760550,424.94216003,0.00011199,2]
[331412677,1720355762562,155.0,0.00011199,2]
[331412684,1720355804742,4479.03551239,0.00011199,2]
[331412685,1720355808548,-2365.76898245,0.000118,2]
[331412686,1720355808575,-1829.1154,0.0001282,2]
[331412695,1720355848832,552.51494431,0.00011199,2]
[331412700,1720355856090,297.97036958,0.00012994,2]
[331412704,1720355873527,155.0,0.00011199,2]
[331412705,1720355874639,1000.0,0.00012969,2]
[331412706,1720355877414,181.21410071,0.00011199,2]
[331412707,1720355888166,155.0,0.00011199,2]
[331412708,1720355894429,150.0,0.00011199,2]
[331412709,1720355894453,140.66575246,0.00011199,2]
[331412710,1720355900775,109.66,0.0001299,2]
[331412711,1720355900800,59.35,0.0001299,2]